[Event "European Online Club-ch-F 2021"]
[Site "Online"]
[Date "2021.03.27"]
[Round "4.1"]
[White "Prieur, Eetu"]
[Black "Sochacki, Christophe"]
[Result "1-0"]
[ECO "B00"]
[WhiteElo "2172"]
[BlackElo "2477"]
[Annotator "ChessBase"]
[PlyCount "85"]
[EventDate "2021.03.27"]
[EventType "team-tourn"]
[EventCountry "NET"]
[SourceTitle "playchess.com"]
[Source "ChessBase"]
[SourceQuality "1"]
[TimeControl "900+5"]

1. e4 {[%emt 0:00:00]} Nc6 {[%emt 0:00:09]} 2. Nf3 {[%emt 0:00:59]} d5 {[%emt 0:00:14]} 3. exd5 {[%emt 0:00:18]} Qxd5 {[%emt 0:00:03]} 4. Nc3 {[%emt 0:00:04]} Qd6 {[%emt 0:00:01]} 5. Nb5 {[%emt 0:00:35]} Qd8 {[%emt 0:00:03]} 6. d4 {[%emt 0:00:07]} Nf6 {[%emt 0:00:08]} 7. Bf4 {[%emt 0:00:13]} Nd5 {[%emt 0:00:02]} 8. Bg3 {[%emt 0:00:03]} a6 {[%emt 0:00:55]} 9. Nc3 {[%emt 0:00:20]} Nxc3 {[%emt 0:00:55]} 10. bxc3 {[%emt 0:00:03]} e6 {[%emt 0:00:05]} 11. Bd3 {[%emt 0:00:19]} Bd6 {[%emt 0:00:04]} 12. Ne5 {[%emt 0:01:37]} Bxe5 {[%emt 0:02:11]} 13. dxe5 {[%emt 0:00:13]} Qd5 {[%emt 0:00:02]} 14. Qg4 {[%emt 0:01:00]} Kf8 {[%emt 0:02:53]} 15. Rd1 {[%emt 0:04:23]} Qc5 {[%emt 0:00:30]} 16. O-O {[%emt 0:00:25]} Bd7 {[%emt 0:00:22]} 17. Be4 {[%emt 0:00:11]} Be8 {[%emt 0:00:09]} 18. Qg5 {[%emt 0:01:34]} Rb8 {[%emt 0:01:10]} 19. Rd3 {[%emt 0:00:20]} h6 {[%emt 0:00:32]} 20. Qf4 {[%emt 0:00:15]} Qe7 {[%emt 0:01:53]} 21. Rfd1 {[%emt 0:00:13]} Rd8 {[%emt 0:00:04]} 22. h4 {[%emt 0:00:48]} Rxd3 {[%emt 0:00:37]} 23. Rxd3 {[%emt 0:00:03]} h5 {[%emt 0:00:10]} 24. Qd2 {[%emt 0:00:12]} f6 {[%emt 0:00:33]} 25. Bxc6 {[%emt 0:00:52]} bxc6 {[%emt 0:00:15]} 26. Rd8 {[%emt 0:00:44]} Kf7 {[%emt 0:00:04]} 27. Ra8 {[%emt 0:00:04]} f5 {[%emt 0:00:44]} 28. Bf4 {[%emt 0:00:13]} Qxh4 {[%emt 0:00:12]} 29. Bg5 {[%emt 0:00:02]} Qc4 {[%emt 0:00:38]} 30. Qd8 {[%emt 0:00:09]} Kg6 {[%emt 0:00:09]} 31. Qe7 {[%emt 0:00:36]} Qd5 {[%emt 0:00:38]} 32. f4 {[%emt 0:00:20]} h4 {[%emt 0:00:43]} 33. Rxe8 {[%emt 0:00:06]} Qd1+ {[%emt 0:00:14]} 34. Kh2 {[%emt 0:00:03]} Rxe8 {[%emt 0:00:07]} 35. Qxe8+ {[%emt 0:00:02]} Kh7 {[%emt 0:00:01]} 36. Qxe6 {[%emt 0:00:03]} Qxc2 {[%emt 0:00:04]} 37. Qf7 {[%emt 0:00:07]} h3 {[%emt 0:00:20]} 38. Qh5+ {[%emt 0:00:04]} Kg8 {[%emt 0:00:02]} 39. Qe8+ {[%emt 0:00:05]} Kh7 {[%emt 0:00:01]} 40. Kxh3 {[%emt 0:00:02]} Qxc3+ {[%emt 0:00:14]} 41. Kh2 {[%emt 0:00:02]} Qc4 {[%emt 0:00:08]} 42. e6 {[%emt 0:00:04]} Qxa2 {[%emt 0:00:05]} 43. Qh5+ {[%emt 0:00:05]} 1-0

[Event "European Online Club-ch-F 2021"]
[Site "Online"]
[Date "2021.03.27"]
[Round "4.2"]
[White "Sochacki, Wojtek"]
[Black "Lammi, Jyri"]
[Result "1-0"]
[ECO "C41"]
[WhiteElo "2320"]
[BlackElo "2083"]
[Annotator "NA"]
[PlyCount "81"]
[EventDate "2021.03.27"]
[EventType "team-tourn"]
[EventCountry "NET"]
[SourceTitle "playchess.com"]
[Source "ChessBase"]
[SourceQuality "1"]
[TimeControl "900+5"]

1. e4 {[%emt 0:00:00]} e5 {[%emt 0:00:55]} 2. Nf3 {[%emt 0:00:03]} d6 {[%emt 0:00:02]} 3. d4 {[%emt 0:00:01]} Nd7 {[%emt 0:00:03]} 4. Nc3 {[%emt 0:00:02]} c6 {[%emt 0:00:04]} 5. Bc4 {[%emt 0:00:02]} Be7 {[%emt 0:00:03]} 6. O-O {[%emt 0:00:02]} Ngf6 {[%emt 0:00:03]} 7. Re1 {[%emt 0:01:15]} O-O {[%emt 0:00:04]} 8. a4 {[%emt 0:00:05]} Qc7 {[%emt 0:00:44]} 9. h3 {[%emt 0:00:18]} h6 {[%emt 0:00:05]} 10. Bb3 {[%emt 0:00:33]} Re8 {[%emt 0:00:09]} 11. Be3 {[%emt 0:00:06]} Nf8 {[%emt 0:00:08]} 12. dxe5 {[%emt 0:01:25]} dxe5 {[%emt 0:00:05]} 13. Nh4 {[%emt 0:00:04]} Be6 {[%emt 0:01:06]} 14. Nf5 {[%emt 0:00:35]} Bxf5 {[%emt 0:01:20]} 15. exf5 {[%emt 0:00:04]} Rad8 {[%emt 0:01:16]} 16. Qe2 {[%emt 0:00:04]} Nd5 {[%emt 0:00:06]} 17. Qc4 {[%emt 0:00:23]} Qa5 {[%emt 0:00:35]} 18. Ne4 {[%emt 0:00:28]} Nh7 {[%emt 0:00:51]} 19. Bd2 {[%emt 0:00:20]} Qc7 {[%emt 0:00:16]} 20. Rad1 {[%emt 0:00:51]} Nhf6 {[%emt 0:00:12]} 21. Bc1 {[%emt 0:01:12]} Qa5 {[%emt 0:02:59]} 22. Bd2 {[%emt 0:00:22]} Qc7 {[%emt 0:00:07]} 23. g3 {[%emt 0:01:19]} Bf8 {[%emt 0:01:13]} 24. Bc1 {[%emt 0:00:24]} Be7 {[%emt 0:00:11]} 25. Kg2 {[%emt 0:00:19]} Qa5 {[%emt 0:00:10]} 26. Bd2 {[%emt 0:00:03]} Qc7 {[%emt 0:00:03]} 27. h4 {[%emt 0:01:03]} Bf8 {[%emt 0:00:26]} 28. Bc1 {[%emt 0:00:20]} Qa5 {[%emt 0:00:04]} 29. Nxf6+ {[%emt 0:00:04]} gxf6 {[%emt 0:00:14]} 30. Qg4+ {[%emt 0:00:05]} Kh7 {[%emt 0:00:08]} 31. Qh5 {[%emt 0:00:03]} Rd7 {[%emt 0:00:18]} 32. c4 {[%emt 0:00:18]} Qb4 {[%emt 0:01:28]} 33. Ba2 {[%emt 0:01:14]} Qxa4 {[%emt 0:00:33]} 34. cxd5 {[%emt 0:00:07]} Qxa2 {[%emt 0:00:04]} 35. dxc6 {[%emt 0:00:01]} Rxd1 {[%emt 0:00:08]} 36. Rxd1 {[%emt 0:00:00]} bxc6 {[%emt 0:00:31]} 37. Rd7 {[%emt 0:00:05]} Re7 {[%emt 0:00:17]} 38. Bxh6 {[%emt 0:01:49]} Rxd7 {[%emt 0:00:50]} 39. Bxf8+ {[%emt 0:00:03]} Kg8 {[%emt 0:00:02]} 40. Qh6 {[%emt 0:00:03]} Qd5+ {[%emt 0:00:12]} 41. Kh2 {[%emt 0:00:05]} 1-0

[Event "European Online Club-ch-F 2021"]
[Site "Online"]
[Date "2021.03.27"]
[Round "4.3"]
[White "Graeffe, Petri"]
[Black "Eden, James"]
[Result "0-1"]
[ECO "A12"]
[WhiteElo "2043"]
[BlackElo "2294"]
[Annotator "NA"]
[PlyCount "74"]
[EventDate "2021.03.27"]
[EventType "team-tourn"]
[EventCountry "NET"]
[SourceTitle "playchess.com"]
[Source "ChessBase"]
[SourceQuality "1"]
[TimeControl "900+5"]

1. Nf3 {[%emt 0:00:00]} d5 {[%emt 0:00:06]} 2. e3 {[%emt 0:00:03]} Nf6 {[%emt 0:00:03]} 3. c4 {[%emt 0:00:10]} c6 {[%emt 0:00:02]} 4. b3 {[%emt 0:00:09]} Bg4 {[%emt 0:00:06]} 5. h3 {[%emt 0:00:25]} Bh5 {[%emt 0:00:10]} 6. Bb2 {[%emt 0:00:07]} e6 {[%emt 0:00:04]} 7. d3 {[%emt 0:00:13]} Nbd7 {[%emt 0:00:06]} 8. Nbd2 {[%emt 0:00:19]} Bd6 {[%emt 0:00:07]} 9. Qc2 {[%emt 0:00:17]} O-O {[%emt 0:00:05]} 10. g4 {[%emt 0:00:17]} Bg6 {[%emt 0:00:04]} 11. Rg1 {[%emt 0:00:06]} e5 {[%emt 0:00:33]} 12. h4 {[%emt 0:02:09]} e4 {[%emt 0:00:39]} 13. Nd4 {[%emt 0:01:24]} Nc5 {[%emt 0:01:37]} 14. Nf5 {[%emt 0:01:00]} Bxf5 {[%emt 0:00:16]} 15. gxf5 {[%emt 0:00:04]} exd3 {[%emt 0:00:10]} 16. Bxd3 {[%emt 0:00:42]} Nxd3+ {[%emt 0:00:32]} 17. Qxd3 {[%emt 0:00:04]} dxc4 {[%emt 0:00:34]} 18. Qc3 {[%emt 0:01:57]} Kh8 {[%emt 0:00:53]} 19. O-O-O {[%emt 0:01:50]} Qe7 {[%emt 0:01:55]} 20. Nxc4 {[%emt 0:00:45]} Bb4 {[%emt 0:00:16]} 21. Qe5 {[%emt 0:01:28]} Rad8 {[%emt 0:00:43]} 22. Qg3 {[%emt 0:01:08]} Rxd1+ {[%emt 0:00:09]} 23. Kxd1 {[%emt 0:00:18]} Rg8 {[%emt 0:00:17]} 24. Kc1 {[%emt 0:00:38]} b5 {[%emt 0:00:23]} 25. Ne5 {[%emt 0:00:02]} Ne8 {[%emt 0:00:56]} 26. Kb1 {[%emt 0:00:11]} Bd6 {[%emt 0:00:16]} 27. f4 {[%emt 0:00:12]} f6 {[%emt 0:00:21]} 28. Nxc6 {[%emt 0:00:04]} Qe4+ {[%emt 0:00:02]} 29. Ka1 {[%emt 0:00:03]} Qxc6 {[%emt 0:00:03]} 30. h5 {[%emt 0:00:05]} h6 {[%emt 0:00:15]} 31. Rc1 {[%emt 0:00:07]} Qe4 {[%emt 0:00:07]} 32. Rc8 {[%emt 0:00:11]} Qxf5 {[%emt 0:00:04]} 33. Rd8 {[%emt 0:00:19]} Qxh5 {[%emt 0:00:10]} 34. Qe1 {[%emt 0:00:04]} Qf7 {[%emt 0:00:29]} 35. Qd2 {[%emt 0:00:04]} Qe7 {[%emt 0:00:04]} 36. Ra8 {[%emt 0:00:05]} Qe4 {[%emt 0:00:13]} 37. a3 {[%emt 0:00:06]} Qxa8 {[%emt 0:00:03]} 0-1

[Event "European Online Club-ch-F 2021"]
[Site "Online"]
[Date "2021.03.27"]
[Round "4.4"]
[White "Maatoug, Redwan"]
[Black "Puittinen, Mika"]
[Result "0-1"]
[ECO "B21"]
[WhiteElo "2202"]
[BlackElo "2007"]
[Annotator "NA"]
[PlyCount "86"]
[EventDate "2021.03.27"]
[EventType "team-tourn"]
[EventCountry "NET"]
[SourceTitle "playchess.com"]
[Source "ChessBase"]
[SourceQuality "1"]
[TimeControl "900+5"]

1. e4 {[%emt 0:00:00]} e6 {[%emt 0:00:06]} 2. f4 {[%emt 0:00:46]} c5 {[%emt 0:00:22]} 3. Nf3 {[%emt 0:00:04]} Nc6 {[%emt 0:00:08]} 4. a4 {[%emt 0:00:51]} d5 {[%emt 0:00:14]} 5. e5 {[%emt 0:00:11]} Nh6 {[%emt 0:00:55]} 6. Nc3 {[%emt 0:00:13]} Be7 {[%emt 0:00:28]} 7. g3 {[%emt 0:00:01]} O-O {[%emt 0:00:06]} 8. Bg2 {[%emt 0:00:01]} f6 {[%emt 0:00:09]} 9. exf6 {[%emt 0:00:34]} Bxf6 {[%emt 0:00:06]} 10. O-O {[%emt 0:00:02]} Bd7 {[%emt 0:01:14]} 11. d3 {[%emt 0:00:20]} Nf5 {[%emt 0:01:11]} 12. g4 {[%emt 0:00:35]} Nfd4 {[%emt 0:00:52]} 13. g5 {[%emt 0:00:19]} Nxf3+ {[%emt 0:00:17]} 14. Rxf3 {[%emt 0:00:27]} Bxc3 {[%emt 0:02:21]} 15. bxc3 {[%emt 0:00:04]} Ne7 {[%emt 0:01:12]} 16. Rh3 {[%emt 0:01:10]} e5 {[%emt 0:01:08]} 17. Rxh7 {[%emt 0:02:02]} Kxh7 {[%emt 0:00:06]} 18. Qh5+ {[%emt 0:00:05]} Kg8 {[%emt 0:00:05]} 19. g6 {[%emt 0:00:02]} Rf5 {[%emt 0:02:14]} 20. Qh7+ {[%emt 0:02:23]} Kf8 {[%emt 0:00:04]} 21. Qh8+ {[%emt 0:01:21]} Ng8 {[%emt 0:00:03]} 22. Bxd5 {[%emt 0:00:17]} Ke7 {[%emt 0:00:19]} 23. fxe5 {[%emt 0:02:06]} Qf8 {[%emt 0:01:29]} 24. Be3 {[%emt 0:01:04]} Rc8 {[%emt 0:00:20]} 25. Qh4+ {[%emt 0:00:51]} Ke8 {[%emt 0:00:31]} 26. Bf7+ {[%emt 0:00:33]} Rxf7 {[%emt 0:00:06]} 27. gxf7+ {[%emt 0:00:03]} Qxf7 {[%emt 0:00:06]} 28. Qg3 {[%emt 0:00:11]} Ne7 {[%emt 0:00:21]} 29. Rf1 {[%emt 0:00:10]} Qg6 {[%emt 0:00:03]} 30. Bg5 {[%emt 0:00:01]} Nf5 {[%emt 0:00:31]} 31. Qf4 {[%emt 0:00:05]} Be6 {[%emt 0:00:13]} 32. h4 {[%emt 0:00:02]} Kd7 {[%emt 0:00:08]} 33. Kh2 {[%emt 0:00:09]} Rh8 {[%emt 0:00:03]} 34. Qe4 {[%emt 0:00:06]} Qxg5 {[%emt 0:00:04]} 35. Qxb7+ {[%emt 0:00:02]} Ke8 {[%emt 0:00:05]} 36. Qb8+ {[%emt 0:00:16]} Qd8 {[%emt 0:00:04]} 37. Qxd8+ {[%emt 0:00:12]} Kxd8 {[%emt 0:00:02]} 38. Rb1 {[%emt 0:00:01]} Rxh4+ {[%emt 0:00:03]} 39. Kg1 {[%emt 0:00:01]} Kc7 {[%emt 0:00:02]} 40. Kf2 {[%emt 0:00:03]} Rh2+ {[%emt 0:00:02]} 41. Kf3 {[%emt 0:00:02]} Rxc2 {[%emt 0:00:03]} 42. c4 {[%emt 0:00:04]} Rd2 {[%emt 0:00:06]} 43. Rb3 {[%emt 0:00:09]} Nd4+ {[%emt 0:00:03]} 0-1

[Event "European Online Club-ch-F 2021"]
[Site "Online"]
[Date "2021.03.27"]
[Round "4.5"]
[White "Yilmazyerli, Mert"]
[Black "Hellers, Ferdinand"]
[Result "1/2-1/2"]
[ECO "A30"]
[WhiteElo "2413"]
[BlackElo "2592"]
[Annotator "ChessBase"]
[PlyCount "210"]
[EventDate "2021.03.27"]
[EventType "team-tourn"]
[EventCountry "NET"]
[SourceTitle "playchess.com"]
[Source "ChessBase"]
[SourceQuality "1"]
[TimeControl "900+5"]

1. Nf3 {[%emt 0:00:00]} Nf6 {[%emt 0:00:08]} 2. g3 {[%emt 0:00:04]} b6 {[%emt 0:00:13]} 3. Bg2 {[%emt 0:00:02]} Bb7 {[%emt 0:00:01]} 4. O-O {[%emt 0:00:01]} c5 {[%emt 0:00:05]} 5. c4 {[%emt 0:00:02]} e6 {[%emt 0:00:09]} 6. Nc3 {[%emt 0:00:02]} a6 {[%emt 0:00:06]} 7. d4 {[%emt 0:00:03]} cxd4 {[%emt 0:00:02]} 8. Qxd4 {[%emt 0:00:01]} d6 {[%emt 0:00:03]} 9. Rd1 {[%emt 0:00:10]} Nbd7 {[%emt 0:00:03]} 10. Ng5 {[%emt 0:00:31]} Bxg2 {[%emt 0:01:16]} 11. Kxg2 {[%emt 0:00:03]} Rc8 {[%emt 0:01:25]} 12. Nge4 {[%emt 0:00:17]} Rc6 {[%emt 0:00:49]} 13. Nxf6+ {[%emt 0:02:37]} Nxf6 {[%emt 0:00:05]} 14. Bf4 {[%emt 0:00:41]} Be7 {[%emt 0:00:31]} 15. Ne4 {[%emt 0:00:28]} Nxe4 {[%emt 0:01:19]} 16. Qxe4 {[%emt 0:00:02]} Qc8 {[%emt 0:00:31]} 17. b3 {[%emt 0:00:02]} O-O {[%emt 0:00:10]} 18. Rd2 {[%emt 0:00:08]} b5 {[%emt 0:00:16]} 19. cxb5 {[%emt 0:01:23]} axb5 {[%emt 0:00:04]} 20. a4 {[%emt 0:00:01]} d5 {[%emt 0:00:09]} 21. Qd3 {[%emt 0:00:05]} Bf6 {[%emt 0:01:07]} 22. axb5 {[%emt 0:00:39]} Rc3 {[%emt 0:00:08]} 23. Qb1 {[%emt 0:00:03]} e5 {[%emt 0:00:02]} 24. Bxe5 {[%emt 0:00:24]} Bxe5 {[%emt 0:00:04]} 25. Rxd5 {[%emt 0:00:01]} Rc5 {[%emt 0:01:31]} 26. Rxc5 {[%emt 0:00:30]} Qxc5 {[%emt 0:00:04]} 27. Ra4 {[%emt 0:00:20]} Qxb5 {[%emt 0:00:05]} 28. Qc2 {[%emt 0:00:26]} Rb8 {[%emt 0:00:50]} 29. Rc4 {[%emt 0:00:03]} Qb7+ {[%emt 0:00:22]} 30. Qe4 {[%emt 0:00:20]} f6 {[%emt 0:01:34]} 31. f4 {[%emt 0:00:49]} Bb2 {[%emt 0:00:54]} 32. Qxb7 {[%emt 0:00:16]} Rxb7 {[%emt 0:00:03]} 33. b4 {[%emt 0:00:19]} Ba3 {[%emt 0:00:03]} 34. Rc3 {[%emt 0:00:01]} Bxb4 {[%emt 0:00:04]} 35. Rb3 {[%emt 0:00:01]} Rb6 {[%emt 0:00:35]} 36. Kf3 {[%emt 0:00:03]} Bc5 {[%emt 0:00:03]} 37. Rc3 {[%emt 0:00:01]} Be7 {[%emt 0:00:08]} 38. Rc7 {[%emt 0:00:11]} Kf7 {[%emt 0:00:11]} 39. Ra7 {[%emt 0:00:02]} Rb3+ {[%emt 0:00:09]} 40. Kf2 {[%emt 0:00:03]} Ke6 {[%emt 0:00:09]} 41. Rc7 {[%emt 0:00:04]} h5 {[%emt 0:00:20]} 42. Rc4 {[%emt 0:00:10]} Kd5 {[%emt 0:00:13]} 43. Rc8 {[%emt 0:00:07]} g5 {[%emt 0:01:24]} 44. Rh8 {[%emt 0:00:11]} Ke4 {[%emt 0:00:30]} 45. fxg5 {[%emt 0:00:08]} fxg5 {[%emt 0:00:09]} 46. Rxh5 {[%emt 0:00:01]} Bc5+ {[%emt 0:00:25]} 47. Kg2 {[%emt 0:00:02]} Be3 {[%emt 0:00:03]} 48. Rh8 {[%emt 0:00:12]} Bd4 {[%emt 0:00:06]} 49. Rg8 {[%emt 0:00:17]} Kf5 {[%emt 0:00:06]} 50. h4 {[%emt 0:00:07]} gxh4 {[%emt 0:00:04]} 51. gxh4 {[%emt 0:00:01]} Re3 {[%emt 0:00:03]} 52. Rf8+ {[%emt 0:00:23]} Kg4 {[%emt 0:00:06]} 53. Kf1 {[%emt 0:00:01]} Re4 {[%emt 0:00:08]} 54. Rf3 {[%emt 0:00:10]} Kxh4 {[%emt 0:00:02]} 55. e3 {[%emt 0:00:02]} Bxe3 {[%emt 0:00:02]} 56. Ke2 {[%emt 0:00:01]} Bc5+ {[%emt 0:00:03]} 57. Kd3 {[%emt 0:00:01]} Re5 {[%emt 0:00:01]} 58. Kc4 {[%emt 0:00:05]} Kg4 {[%emt 0:00:03]} 59. Rd3 {[%emt 0:00:01]} Be3 {[%emt 0:00:03]} 60. Rd5 {[%emt 0:00:03]} Re6 {[%emt 0:00:03]} 61. Rd1 {[%emt 0:00:09]} Kf4 {[%emt 0:00:03]} 62. Kd5 {[%emt 0:00:03]} Re5+ {[%emt 0:00:03]} 63. Kd6 {[%emt 0:00:01]} Ke4 {[%emt 0:00:03]} 64. Kc6 {[%emt 0:00:10]} Re6+ {[%emt 0:00:05]} 65. Rd6 {[%emt 0:00:03]} Re5 {[%emt 0:00:08]} 66. Rd1 {[%emt 0:00:07]} Rc5+ {[%emt 0:00:02]} 67. Kd6 {[%emt 0:00:03]} Ra5 {[%emt 0:00:01]} 68. Kd7 {[%emt 0:00:06]} Bd4 {[%emt 0:00:04]} 69. Kc8 {[%emt 0:00:06]} Kd5 {[%emt 0:00:03]} 70. Rd2 {[%emt 0:00:02]} Ra7 {[%emt 0:00:09]} 71. Rd1 {[%emt 0:00:01]} Rh7 {[%emt 0:00:08]} 72. Rd2 {[%emt 0:00:02]} Kc5 {[%emt 0:00:05]} 73. Rd1 {[%emt 0:00:07]} Be5 {[%emt 0:00:07]} 74. Rd7 {[%emt 0:00:02]} Rh1 {[%emt 0:00:08]} 75. Rb7 {[%emt 0:00:49]} Rh2 {[%emt 0:00:29]} 76. Kd7 {[%emt 0:00:16]} Rh7+ {[%emt 0:00:04]} 77. Kc8 {[%emt 0:00:02]} Rh6 {[%emt 0:00:05]} 78. Kd7 {[%emt 0:00:02]} Bd6 {[%emt 0:00:05]} 79. Kc8 {[%emt 0:00:12]} Kd5 {[%emt 0:00:05]} 80. Kd7 {[%emt 0:00:05]} Rh2 {[%emt 0:00:05]} 81. Rb5+ {[%emt 0:00:03]} Bc5 {[%emt 0:00:02]} 82. Rb7 {[%emt 0:00:01]} Rh3 {[%emt 0:00:07]} 83. Kc8 {[%emt 0:00:05]} Bd6 {[%emt 0:00:04]} 84. Kd7 {[%emt 0:00:03]} Rh4 {[%emt 0:00:09]} 85. Kc8 {[%emt 0:00:01]} Ke6 {[%emt 0:00:05]} 86. Rb5 {[%emt 0:00:10]} Rh8+ {[%emt 0:00:05]} 87. Kb7 {[%emt 0:00:02]} Kd7 {[%emt 0:00:01]} 88. Ka6 {[%emt 0:00:06]} Bc7 {[%emt 0:00:04]} 89. Kb7 {[%emt 0:00:01]} Rh6 {[%emt 0:00:04]} 90. Rd5+ {[%emt 0:00:05]} Bd6 {[%emt 0:00:01]} 91. Rb5 {[%emt 0:00:01]} Rh1 {[%emt 0:00:03]} 92. Kb6 {[%emt 0:00:06]} Rc1 {[%emt 0:00:02]} 93. Kb7 {[%emt 0:00:02]} Rc6 {[%emt 0:00:03]} 94. Rb6 {[%emt 0:00:16]} Rc2 {[%emt 0:00:02]} 95. Rb5 {[%emt 0:00:01]} Bc7 {[%emt 0:00:02]} 96. Rd5+ {[%emt 0:00:03]} Bd6 {[%emt 0:00:02]} 97. Rb5 {[%emt 0:00:02]} Rc4 {[%emt 0:00:02]} 98. Kb6 {[%emt 0:00:09]} Bc7+ {[%emt 0:00:04]} 99. Kb7 {[%emt 0:00:02]} Rd4 {[%emt 0:00:01]} 100. Ka6 {[%emt 0:00:07]} Rd1 {[%emt 0:00:09]} 101. Kb7 {[%emt 0:00:02]} Rd2 {[%emt 0:00:06]} 102. Ka6 {[%emt 0:00:02]} Kc8 {[%emt 0:00:02]} 103. Rc5 {[%emt 0:00:16]} Ra2+ {[%emt 0:00:07]} 104. Kb5 {[%emt 0:00:02]} Kb7 {[%emt 0:00:02]} 105. Rd5 {[%emt 0:00:01]} Rb2+ {[%emt 0:00:03]} 1/2-1/2

[Event "European Online Club-ch-F 2021"]
[Site "Online"]
[Date "2021.03.27"]
[Round "4.6"]
[White "Moreau, Teodor"]
[Black "Isik, Alparslan"]
[Result "1/2-1/2"]
[ECO "D80"]
[WhiteElo "2329"]
[BlackElo "2321"]
[Annotator "NA"]
[PlyCount "85"]
[EventDate "2021.03.27"]
[EventType "team-tourn"]
[EventCountry "NET"]
[SourceTitle "playchess.com"]
[Source "ChessBase"]
[SourceQuality "1"]
[TimeControl "900+5"]

1. d4 {[%emt 0:00:00]} Nf6 {[%emt 0:00:04]} 2. c4 {[%emt 0:00:05]} g6 {[%emt 0:00:03]} 3. Nc3 {[%emt 0:00:02]} d5 {[%emt 0:00:04]} 4. Bg5 {[%emt 0:00:04]} Ne4 {[%emt 0:00:09]} 5. Bh4 {[%emt 0:00:03]} Nxc3 {[%emt 0:00:08]} 6. bxc3 {[%emt 0:00:04]} dxc4 {[%emt 0:00:19]} 7. e3 {[%emt 0:00:03]} Be6 {[%emt 0:00:04]} 8. Qb1 {[%emt 0:00:09]} Qc8 {[%emt 0:00:31]} 9. Nh3 {[%emt 0:00:21]} Nd7 {[%emt 0:00:13]} 10. a4 {[%emt 0:00:38]} a5 {[%emt 0:00:06]} 11. Nf4 {[%emt 0:00:05]} Nb6 {[%emt 0:00:03]} 12. Nxe6 {[%emt 0:00:06]} Qxe6 {[%emt 0:00:02]} 13. Qb5+ {[%emt 0:00:09]} Qd7 {[%emt 0:00:07]} 14. Bxc4 {[%emt 0:00:12]} Nxc4 {[%emt 0:00:04]} 15. Qxc4 {[%emt 0:00:03]} Bg7 {[%emt 0:00:05]} 16. O-O {[%emt 0:00:04]} O-O {[%emt 0:00:03]} 17. Rab1 {[%emt 0:00:07]} b6 {[%emt 0:00:04]} 18. Bg3 {[%emt 0:00:43]} Rac8 {[%emt 0:00:11]} 19. Rb5 {[%emt 0:00:08]} e6 {[%emt 0:00:53]} 20. h3 {[%emt 0:00:13]} h5 {[%emt 0:00:10]} 21. Rfb1 {[%emt 0:00:26]} Rfe8 {[%emt 0:00:02]} 22. Be5 {[%emt 0:01:42]} Bxe5 {[%emt 0:00:45]} 23. Rxe5 {[%emt 0:00:05]} Red8 {[%emt 0:00:13]} 24. Rbb5 {[%emt 0:00:22]} Qe7 {[%emt 0:01:17]} 25. Rb3 {[%emt 0:00:21]} Rd6 {[%emt 0:00:12]} 26. Reb5 {[%emt 0:00:20]} Qd7 {[%emt 0:00:09]} 27. Qe2 {[%emt 0:00:28]} Rd5 {[%emt 0:00:36]} 28. Qc4 {[%emt 0:00:56]} Rxb5 {[%emt 0:00:28]} 29. Qxb5 {[%emt 0:00:03]} Qxb5 {[%emt 0:01:04]} 30. Rxb5 {[%emt 0:00:04]} Kf8 {[%emt 0:00:18]} 31. c4 {[%emt 0:00:53]} c5 {[%emt 0:01:06]} 32. dxc5 {[%emt 0:02:32]} Rxc5 {[%emt 0:00:04]} 33. Rxc5 {[%emt 0:00:03]} bxc5 {[%emt 0:00:01]} 34. f4 {[%emt 0:00:20]} e5 {[%emt 0:00:07]} 35. Kf2 {[%emt 0:00:09]} Ke7 {[%emt 0:00:02]} 36. Kf3 {[%emt 0:00:06]} Ke6 {[%emt 0:00:13]} 37. g4 {[%emt 0:00:11]} hxg4+ {[%emt 0:00:07]} 38. hxg4 {[%emt 0:00:06]} f5 {[%emt 0:00:15]} 39. g5 {[%emt 0:00:12]} Kd6 {[%emt 0:00:03]} 40. Ke2 {[%emt 0:00:04]} Ke6 {[%emt 0:00:03]} 41. Kf3 {[%emt 0:00:02]} Kd6 {[%emt 0:00:01]} 42. Ke2 {[%emt 0:00:03]} Ke6 {[%emt 0:00:01]} 43. Kf3 {[%emt 0:00:02]} 1/2-1/2

[Event "European Online Club-ch-F 2021"]
[Site "Online"]
[Date "2021.03.27"]
[Round "4.7"]
[White "Karaoglan, Doruk"]
[Black "Reizniece-Ozola, Dana"]
[Result "0-1"]
[ECO "B25"]
[WhiteElo "2230"]
[BlackElo "2279"]
[Annotator "NA"]
[PlyCount "58"]
[EventDate "2021.03.27"]
[EventType "team-tourn"]
[EventCountry "NET"]
[SourceTitle "playchess.com"]
[Source "ChessBase"]
[SourceQuality "1"]
[TimeControl "900+5"]

1. e4 {[%emt 0:00:00]} c5 {[%emt 0:00:06]} 2. Nc3 {[%emt 0:00:04]} Nc6 {[%emt 0:00:04]} 3. g3 {[%emt 0:00:02]} g6 {[%emt 0:00:04]} 4. Bg2 {[%emt 0:00:03]} Bg7 {[%emt 0:00:03]} 5. d3 {[%emt 0:00:03]} d6 {[%emt 0:00:08]} 6. f4 {[%emt 0:00:03]} e6 {[%emt 0:00:05]} 7. Nf3 {[%emt 0:00:03]} Nge7 {[%emt 0:00:03]} 8. O-O {[%emt 0:00:03]} O-O {[%emt 0:00:03]} 9. Be3 {[%emt 0:00:03]} Nd4 {[%emt 0:00:02]} 10. e5 {[%emt 0:00:56]} Nef5 {[%emt 0:00:13]} 11. Bf2 {[%emt 0:00:03]} Bd7 {[%emt 0:00:08]} 12. Ne4 {[%emt 0:04:33]} Bc6 {[%emt 0:00:07]} 13. exd6 {[%emt 0:02:09]} Nxf3+ {[%emt 0:04:14]} 14. Bxf3 {[%emt 0:00:06]} Bxb2 {[%emt 0:01:45]} 15. Bxc5 {[%emt 0:02:19]} Bd4+ {[%emt 0:02:04]} 16. Bxd4 {[%emt 0:00:23]} Nxd4 {[%emt 0:00:08]} 17. Bg2 {[%emt 0:00:02]} Nf5 {[%emt 0:00:10]} 18. Qd2 {[%emt 0:01:00]} Nxd6 {[%emt 0:00:33]} 19. Qc3 {[%emt 0:00:12]} Nxe4 {[%emt 0:00:39]} 20. dxe4 {[%emt 0:00:03]} Rc8 {[%emt 0:00:03]} 21. Qe3 {[%emt 0:00:09]} Qa5 {[%emt 0:01:09]} 22. Rf2 {[%emt 0:00:44]} Ba4 {[%emt 0:00:32]} 23. Rc1 {[%emt 0:01:07]} Rc3 {[%emt 0:00:16]} 24. Qd4 {[%emt 0:00:25]} Rfc8 {[%emt 0:01:08]} 25. f5 {[%emt 0:01:20]} Rxc2 {[%emt 0:02:30]} 26. Rcxc2 {[%emt 0:01:02]} Rxc2 {[%emt 0:00:02]} 27. Rxc2 {[%emt 0:00:08]} Bxc2 {[%emt 0:00:03]} 28. fxe6 {[%emt 0:00:08]} fxe6 {[%emt 0:00:08]} 29. e5 {[%emt 0:00:01]} b5 {[%emt 0:00:46]} 0-1